Cogmind - Beta 13 @@@ ROGUE MODE // 2024.05.19 @ 20:32:16 Player: a602-5 Result: Destroyed by as-63364 with Assembled Heavy Rifle Performance ------------- Evolutions (0) 0 Regions Visited (2) 400 Robots Destroyed (5) 25 Value Destroyed (128) 128 Prototype IDs (0) 0 Alien Tech Used (0) 0 Bonus (0) 0 TOTAL SCORE: 553 Bonus ------- None Cogmind --------- Core Integrity 0/250 Matter 236/300 Energy 160/160 System Corruption 4% Temperature Cool (62) Movement Treading (160) Location -10/Mines Parts ------- > --- POWER (1) -------- Light Nuclear Core > --- PROPULSION (2) --- Light Treads Light Treads > --- UTILITY (2) ------ (None) > --- WEAPON (2) ------- Assault Rifle > --- INVENTORY (5) ---- High-capacity Storage Unit Peak State ------------ > --- POWER ------------ Light Nuclear Core > --- PROPULSION ------- Aluminum Leg Aluminum Leg > --- UTILITY ---------- Cooling System Improved Targeting Computer > --- WEAPON ----------- Medium Laser Assault Rifle > --- INVENTORY -------- Light Treads Light Treads High-capacity Storage Unit [Rating: 11] Favorites ----------- Power Ion Engine Engine Ion Engine Power Core Light Nuclear Core Propulsion Aluminum Leg Treads Light Treads Leg Aluminum Leg Utility Improved Targeting Computer Device Cooling System Storage Small Storage Unit Processor Improved Targeting Computer Weapon Medium Laser Energy Gun Medium Laser Ballistic Gun Assault Rifle Launcher Grenade Launcher Build | -11 -10 -10 ------- Run | Yrd Mat Min Slots Evolved . | . . . Power . | . . . Propulsion . | . . . Utility . | . . . Weapon . | . . . Parts Attached 16 | 6 7 3 Power 3 | 1 1 1 Engine 2 | 1 1 . Core 1 | . . 1 Reactor . | . . . Propulsion 4 | 2 . 2 Treads 2 | . . 2 Leg 2 | 2 . . Wheel . | . . . Hover . | . . . Flight . | . . . Utility 5 | 1 4 . Device 1 | . 1 . Storage 3 | 1 2 . Processor 1 | . 1 . Hackware . | . . . Protection . | . . . Artifact . | . . . Weapon 4 | 2 2 . Energy Gun 1 | 1 . . Energy Cannon . | . . . Ballistic Gun 2 | 1 1 . Ballistic Cannon . | . . . Launcher 1 | . 1 . Special Weapon . | . . . Impact Weapon . | . . . Slashing Weapon . | . . . Piercing Weapon . | . . . Special Melee Weapon . | . . . Unidentified Prototypes . | . . . Parts Lost 6 | . 1 5 Power 2 | . 1 1 Propulsion 1 | . . 1 Utility 2 | . . 2 Weapon 1 | . . 1 Highest Loss Streak 5 | . 1 5 To Critical Strikes . | . . . Average Slot Usage (%) 95 | . 96 94 Engine 12 | . 14 11 Core 1 | . . 2 Treads 1 | . . 3 Leg 26 | . 28 24 Device 10 | . 10 12 Storage 2 | . 3 . Processor 10 | . 10 12 Energy Gun 13 | . 14 13 Ballistic Gun 12 | . 11 14 Launcher 1 | . 2 . Naked Turns . | . . . Heaviest Build 29 | 14 29 11 Greatest Support 40 | 20 20 40 Greatest Overweight (x) 4 | 4 1 . Average Overweight (x) . | 1 . . Largest Inventory Capacity 15 | 8 15 5 Average Capacity 6 | 7 7 5 Most Carried 5 | 4 5 4 Average Carried 3 | 2 4 3 Final Capacity 8 | 8 5 5 Final Carried 4 | 4 4 1 Class Distribution -------------------- 100% | Mutant Dominant Class ---------------- Mutant | -10/Materials Mutant | -10/Mines Resources | -11 -10 -10 ----------- Run | Yrd Mat Min Matter Collected 368 | 250 73 45 Remotely . | . . . Salvage Created 122 | . 109 13 Parts 7 | . 7 . Haulers Intercepted . | . . . Recyclers Shooed . | . . . Parts Field Recycled . | . . . Retrieved Matter . | . . . Parts Self-Destructed . | . . . Prevented . | . . . Kills | -11 -10 -10 ------- Run | Yrd Mat Min Combat Hostiles Destroyed 4 | . 2 2 Guns 3 | . 1 2 AOE 1 | . 1 . Classes Destroyed 4 | . 3 1 Builder 1 | . 1 . Watcher 2 | . 2 . Grunt 2 | . 2 . Assembled 2 | . . 2 Best Kill Streak 3 | . 3 2 Combat Bots Only 2 | . 1 2 Max Kills in Single Turn 2 | . 2 1 Gunslinging . | . . . Exploded 1 | . 1 . Melee . | . . . Uniques/NPCs Destroyed . | . . . Combat | -11 -10 -10 -------- Run | Yrd Mat Min Hostile Shots Fired 73 | . 31 42 Missed 33 | . 19 14 Damage Taken 889 | . 302 587 Core 262 | . 69 193 Absorbed by Shields . | . . . Core Remaining (%) 100 | 100 . . Volleys Fired 18 | . 12 6 Largest 2 | . 2 2 Hottest 80 | . 80 70 Shots Fired 34 | . 24 10 Gun 29 | . 19 10 Cannon . | . . . Launcher 5 | . 5 . Special . | . . . Kinetic 13 | . 7 6 Thermal 16 | . 12 4 Explosive 5 | . 5 . Electromagnetic . | . . . Robot Hit Streak 4 | . 4 3 Robot Miss Streak 3 | . 3 2 Penetration Max . | . . . Secondary Targets 2 | . . 2 Max Gunslinging Chain 1 | . . 1 Shots Hit Robots 19 | . 15 4 Core Hits 13 | . 10 3 Critical Kills . | . . . Critical Parts Destroyed . | . . . Critical Strikes . | . . . Melee Attacks . | . . . Impact . | . . . Slashing . | . . . Piercing . | . . . Sneak Attacks . | . . . Combat Hostiles . | . . . Follow-up Attacks . | . . . Damage Inflicted 317 | . 271 46 Guns 196 | . 150 46 Cannons . | . . . Explosions 114 | . 114 . Melee . | . . . Ramming 7 | . 7 . Kinetic 84 | . 62 22 Thermal 112 | . 88 24 Explosive 114 | . 114 . Electromagnetic . | . . . Impact . | . . . Slashing . | . . . Piercing . | . . . Highest Corruption 4 | . . 4 Average Corruption 4 | . . 4 Corruption Purged . | . . . Corruption Blocked . | . . . Effects 2 | . . 2 Matter Fused 2 | . . 2 Overload Shots . | . . . Overflow Damage . | . . . Projectiles . | . . . Explosions . | . . . Melee . | . . . Knockbacks . | . . . Impact . | . . . Kinetic . | . . . Secondary . | . . . Self-Inflicted Damage 65 | . 65 . Shots 2 | . 2 . Rammed . | . . . Targets Rammed 1 | . 1 . Kicked 1 | . 1 . Crushed . | . . . Highest Temperature 120 | . . 120 Average Temperature 58 | . . 58 Received Heat Transfer 222 | . 102 120 Siege Activations . | . . . Robots Corrupted . | . . . Combat Hostiles . | . . . Parts Fried . | . . . Impact Corruptions . | . . . Robots Melted . | . . . Combat Hostiles . | . . . Parts Melted . | . . . Heat Transferred 333 | . 259 74 Parts Sabotaged . | . . . Parts Stolen . | . . . Parts Stripped . | . . . Power Chain Reactions . | . . . Alert | -11 -10 -10 ------- Run | Yrd Mat Min Peak Influence 113 | . 113 43 Initial 43 | . . 43 Average 31 | . 40 37 Maximum Alert Level . | . . . Low Security (%) 100 | 100 100 100 Level 1 . | . . . Level 2 . | . . . Level 3 . | . . . Level 4 . | . . . Level 5 . | . . . High Security . | . . . Max Security . | . . . Squads Dispatched . | . . . Investigation . | . . . Extermination . | . . . Reinforcement . | . . . Assault . | . . . Garrison . | . . . Intercept . | . . . Searches Triggered . | . . . Construction Impeded . | . . . Haulers Reinforced . | . . . Active Scanning Responses . | . . . Cargo Convoy Interrupts . | . . . Stealth | -11 -10 -10 --------- Run | Yrd Mat Min Distress Signals 1 | . 1 . Communications Jammed . | . . . Distress Signals . | . . . Times Spotted 31 | . 8 23 Peak Tracking Total 20 | . 3 20 Tactical Retreats 2 | . . 2 Traps | -11 -10 -10 ------- Run | Yrd Mat Min Traps Triggered . | . . . Indirectly . | . . . Trap Hack Attempts . | . . . Triggered . | . . . Disarmed . | . . . Reprogrammed . | . . . Reused . | . . . Traps Extracted . | . . . Installed . | . . . Triggered . | . . . Machines | -11 -10 -10 ---------- Run | Yrd Mat Min Machines Disabled 1 | . 1 . Max in Single Turn 1 | . 1 . Machines Repaired . | . . . Machines Dismantled . | . . . Machines Sabotaged . | . . . Overloaded Fab Kills . | . . . Hacking | -11 -10 -10 --------- Run | Yrd Mat Min Machines Accessed 1 | . 1 . Terminals . | . . . Fabricators . | . . . Repair Stations 1 | . 1 . Recycling Units . | . . . Scanalyzers . | . . . Garrison Access . | . . . Total Hacks 2 | . 2 . Successful 1 | . 1 . Failed 1 | . 1 . Catastrophic 1 | . 1 . Database Lockouts . | . . . Manual . | . . . Terminals . | . . . Fabricators . | . . . Repair Stations 2 | . 2 . Recycling Units . | . . . Scanalyzers . | . . . Garrison Access . | . . . Terminal Hacks . | . . . Fabricator Hacks . | . . . Repair Station Hacks 1 | . 1 . Scan Component 1 | . 1 . Recycling Unit Hacks . | . . . Scanalyzer . | . . . Garrison Access Hacks . | . . . Unauthorized Hacks . | . . . Terminals . | . . . Fabricators . | . . . Repair Stations . | . . . Recycling Units . | . . . Scanalyzers . | . . . Garrison Access . | . . . Data Cores Recovered . | . . . Used . | . . . Hacking Detections 1 | . 1 . Full Trace Events . | . . . Feedback Events . | . . . Feedback Blocked . | . . . Robot Schematics Acquired . | . . . Robots Built . | . . . Authchips . | . . . Time . | . . . Total Robot Build Rating . | . . . Part Schematics Acquired . | . . . Parts Built . | . . . Authchips . | . . . Time . | . . . Total Part Build Rating . | . . . Parts Repaired . | . . . Time . | . . . Parts Recycled . | . . . Recycled Matter . | . . . Retrieved Matter . | . . . Retrieved Components . | . . . Parts Scanalyzed . | . . . Part Schematics Acquired . | . . . Parts Damaged . | . . . Bothacking | -11 -10 -10 ------------ Run | Yrd Mat Min Used RIF Installer . | . . . Robots Hacked . | . . . Non-combat . | . . . Combat . | . . . Robot Hacks Applied . | . . . Relay Couplers Released . | . . . Fabnet Peak Effective % . | . . . Robots Rewired . | . . . Allies Hacked . | . . . Hacks Repelled . | . . . Allies | -11 -10 -10 -------- Run | Yrd Mat Min Total Allies . | . . . Largest Group . | . . . Highest-Rated Group . | . . . Highest-Rated Ally . | . . . Total Orders . | . . . Ally Attacks . | . . . Total Damage . | . . . Kills . | . . . Allies Corrupted . | . . . Allies Melted . | . . . Intel | -11 -10 -10 ------- Run | Yrd Mat Min Robot Analysis Total . | . . . Derelict Logs Recovered 1 | . . 1 Drone Launches . | . . . Drone Recoveries . | . . . Exploration | -11 -10 -10 ------------- Run | Yrd Mat Min Turns Passed 693 | 139 347 207 Spaces Moved 471 | 99 218 154 Core 63 | 63 . . Treads 5 | . . 5 Legs 403 | 36 218 149 Wheels . | . . . Hover . | . . . Flight . | . . . Fastest Speed 50 | 50 120 120 Average Speed 127 | 125 133 121 Slowest Speed 250 | 250 190 160 Overloaded Moves . | . . . Propulsion Burnouts . | . . . Robots Hopped . | . . . Cave-ins Triggered . | . . . Exploration Rate (%) 27 | 6 38 37 Regions Visited 2 Branch Regions 1 Pre-discovered Areas . | . . . Known Exits Taken . | . . . Unknown Exits Taken 2 | 1 1 . Scrap Searched 1 | . . 1 Spaces Dug . | . . . Terrain Destroyed 11 | . 11 . Melee . | . . . Projectile . | . . . AOE 11 | . 11 . Terrain Rammed . | . . . Walls Destroyed . | . . . Machines Disabled . | . . . Actions | -11 -10 -10 --------- Run | Yrd Mat Min Total 530 | 114 251 165 Wait 1 | . . 1 Move 469 | 98 217 154 Hop . | . . . Pick Up 18 | 10 8 . Fast Attach . | . . . Attach 15 | 6 6 3 Detach . | . . . Swap 1 | . 1 . Drop 7 | . 6 1 Fire 18 | . 12 6 Melee . | . . . Ram . | . . . Kick 1 | . 1 . Crush . | . . . Escape Stasis . | . . . Rewire . | . . . Trap . | . . . Miscellaneous . | . . . Route ------- -11/Scrapyard -10/Materials -10/Mines History --------- Turn | Location | Event 4 | -11/Scrapyard | Discovered new exit (range 16) 140 | -11/Scrapyard | Entered Materials 321 | -10/Materials | Build established: Mutant 470 | -10/Materials | Discovered new exit (range 13) 487 | -10/Materials | Entered Mines 492 | -10/Mines | Learned 4 Materials zone layouts 502 | -10/Mines | Met a Derelict bent on vengeance 629 | -10/Mines | Assembled infested the area 634 | -10/Mines | Assisted by a Guerilla fighting off Assembled 656 | -10/Mines | Core integrity fell below 50% 668 | -10/Mines | Core integrity fell below 20% 694 | -10/Mines | Destroyed by as-63364 with Assembled Heavy Rifle Last Messages --------------- 00661_ as-24062 destroyed. 00661_ as-93849 destroyed. 00661_ as-01586 destroyed. 00661_ Cooling System destroyed. 00661_ D-53 Grenadier destroyed. 00662_ The unstable cave ceiling collapses. 00663_ Aluminum Leg destroyed. 00663_ Imp. Targeting Computer destroyed. 00663_ System corrupted by crushing effect (+4). 00664_ The unstable cave ceiling collapses. 00666_ System corrupted: Matter fused (-9). 00668_ Dropped Aluminum Leg. 00669_ The unstable cave ceiling collapses. 00680_ as-53659 destroyed. 00680_ Switching to secondary target: as-88163. 00683_ The unstable cave ceiling collapses. 00684_ System corrupted: Matter fused (-6). 00686_ as-70133 destroyed. 00686_ Switching to secondary target: as-88163. 00688_ Med. Laser destroyed. Map ----- +----------------------------------------------------+ | | | | | | | | | ?????????????????????????????????????????????????? | | ?????????????????????????????????????????????????? | | ?????????????????????????????????????????????????? | | ?????????????????????????????????????????????????? | | ?????????????????????????????????????????????????? | | ?????????????????????????????????????????????????? | | ?????????????????????????????????????????????????? | | ?????????????????????????????????????????????????? | | ?????????????????????????????????????????????????? | | ?????????????????????????????????????????????????? | | ?????????????????????????????????????????????????? | | ?????????????????????????????????????????????????? | | ?????????????????????????????????????????????????? | | ?????????????????????????????????????????????????? | | ?????????????????????????????????????????????????? | | ?????????????????????????????????????????????????? | | ?????????????????????????????????????????????????? | | ?????????????????????????????????????????????????? | | ????????????????????????###??????????????????????? | | ????????????????????????# ??????????????????????? | | ????????????????????????# #??????????????????????? | | ????????????????????????#@#??????##??????????????? | | ????????????????????????#a#????? ##?????????????? | | ????????????????????????#a#???? ??????????????? | | ????????????????????????#a#??? ???????????????? | | ????????????????????????#a#??# ?????????????????? | | ????????????????????????#a#?#" ??????????????????? | | ????????????????????#####a## #???????????????????? | | ???????????????????## aa #????#???????????????? | | ??????????????????## aa #### #####???????????? | | ?????????????????## # " #??????????? | | ?????????????????# * "%" ?????????? | | ?????????????????# [% ######## ?????????? | | ????????????????## #????????????????????? | | ????????????????# % #????????????????????? | | ????????????????## % # # ##????????????????????? | | ?????????????????# ###?????????????????????? | | ?????????????????## ##??????????????????????? | | ??????????????????# ####??????????????????????? | | ??????????????????## =### ##????????????????????? | | ??????????????###### %## #?????????#??????????? | | ??????????????# #? #????????? ??????????? | | ??????????????# #### ## ##???????? ??????????? | | ??????????????# #??# #? #???????? ??????????? | | ???????######## #??# #?# #???????? ??????????? | | #??# #??# ##??????? ??????????? | +----------------------------------------------------+ Best States ------------- Heat Dissipation 47 Energy Generation 14 Energy Capacity 250 Matter Stores 290 Matter Capacity 300 Sight Range 16 Terrain Scan Density 10 Evasion (%) 55 Targeting Accuracy 6 Recoil Reduction 2 Item Schematics ----------------- None Robot Schematics ------------------ None Fabricated ------------ Nothing Alien Tech Used ----------------- None Achievements -------------- Hunted Challenges ------------ None Game ------ Seed AutogunGhostFlamer Manual? 0 Play Time 00:12:01 Cumulative 10.7 hours Start 2024.05.19 @ 20:22:08 End 2024.05.19 @ 20:32:16 Sessions 1 Manual Loads 0 Difficulty Rogue Special Mode None Game No. 34 Rogue 34 Adventurer 0 Explorer 0 Win Type - Total 0 Types 0/0/0/0/0/0/0/0/0 Lore% 2 Gallery% 15 Achievement% 14 Wizard Run 0 Options --------- Layout 1 ASCII 0 Keyboard 0 Movement Numpad Keybinds 0 Fullscreen 2 Font 24/Smallcaps Map View 50x35 Zoom Use 0% Tactical HUD 1 Map Filters NONE Filters NONE Steam 1 RUN: 5e81eefd-540f-42d7-88e2-00a255569172